bitfinex/quotes_SOLUSD_20251030
["timestamp","ask_amount","ask_price","bid_price","bid_amount"]
[1761853089949,5.89796997,180.26,180.21,5.89796997]
[1761853090149,5.89796997,180.26,180.21,6.55796997]
[1761853090350,5.5472347,180.27,180.22,0.66]
[1761853090579,5.89796997,180.27,180.22,6.55796997]
[1761853090782,3.63462657,180.28,180.23,5.89796997]
[1761853090983,3.63462657,180.28,180.25,5.89796997]
[1761853091274,9.18097296,180.3,180.26,6.55796997]
[1761853091458,5.54634639,180.3,180.26,5.89796997]
[1761853091777,9.18075875,180.31,180.27,6.55796997]
[1761853091977,5.5456989,180.32,180.27,6.55796997]
[1761853092162,5.5456989,180.32,180.28,0.66]
[1761853092368,11.44366887,180.32,180.27,0.66]
[1761853092569,15.07829544,180.32,180.27,0.66]
[1761853092773,5.89796997,180.29,180.23,0.66]
[1761853092968,5.89796997,180.29,180.23,6.55796997]
[1761853093377,4.32462657,180.31,180.23,6.55796997]
[1761853093378,5.89796997,180.3,180.24,5.89796997]
[1761853093775,5.89796997,180.3,180.24,6.55796997]
[1761853093963,5.54661933,180.29,180.24,6.55796997]
[1761853094472,3.63462657,180.31,180.27,5.89796997]
[1761853094670,24.22662657,180.32,180.27,5.89796997]
[1761853094882,5.54614188,180.31,180.28,0.66]
[1761853095078,3.63462657,180.31,180.28,0.66]
[1761853095257,5.54477405,180.35,180.3,5.89796997]
[1761853095464,4.03013355,180.34,180.3,5.89796997]
[1761853095668,4.03013355,180.34,180.29,5.89796997]
[1761853095875,5.545389,180.33,180.29,5.89796997]
[1761853096384,9.18001557,180.33,180.29,6.58796997]
[1761853096585,3.63462657,180.33,180.31,5.89796997]
[1761853096758,5.74459094,180.36,180.3,6.58796997]
[1761853096963,10.58559244,180.35,180.28,5.89796997]
[1761853097176,20.592,180.33,180.28,5.89796997]
[1761853097486,20.592,180.33,180.27,0.69]
[1761853097487,24.22662657,180.33,180.27,6.58796997]
[1761853097670,24.22662657,180.33,180.28,5.89796997]
[1761853097873,5.54569653,180.32,180.28,5.89796997]
[1761853098068,9.1803231,180.32,180.26,0.69]
[1761853098274,15.73829307,180.32,180.26,6.58796997]
[1761853098492,3.63462657,180.32,180.31,5.89796997]
[1761853098694,7.56850872,180.36,180.31,5.89796997]
[1761853098695,20.792,180.36,180.31,5.89796997]
[1761853098861,0.2,180.36,180.32,0.69]
[1761853099065,0.2,180.36,180.33,5.89796997]
[1761853099590,0.2,180.36,180.34,0.69]
[1761853100098,0.2,180.36,180.34,6.58796997]
[1761853100463,5.74472625,180.36,180.29,0.69]
[1761853100705,4.02500105,180.35,180.31,5.89796997]
[1761853101071,7.65962762,180.35,180.31,5.89796997]
[1761853101287,4.02453502,180.34,180.29,5.89796997]
[1761853101791,4.02453502,180.34,180.29,6.58796997]
[1761853101994,9.5697663,180.34,180.3,6.58796997]
[1761853102288,9.1794523,180.35,180.31,5.89796997]
[1761853102467,9.1794523,180.35,180.32,5.89796997]
[1761853102964,9.1794523,180.35,180.33,5.89796997]
[1761853103186,3.63462657,180.35,180.33,5.89796997]
[1761853103390,0.2,180.36,180.34,6.58796997]
[1761853103693,0.2,180.36,180.35,5.89796997]
[1761853104063,12.30243659,180.36,180.3,5.89796997]
[1761853104263,6.40446662,180.36,180.31,5.89796997]
[1761853104469,20.592,180.35,180.31,5.89796997]
[1761853104674,24.22662657,180.35,180.31,5.89796997]
[1761853104875,24.22662657,180.35,180.3,5.89796997]
[1761853105071,3.63462657,180.35,180.3,5.89796997]
[1761853105289,10.03909319,180.36,180.3,6.58796997]
[1761853105489,10.03909319,180.36,180.31,5.89796997]
[1761853105689,3.83462657,180.36,180.35,5.89796997]
[1761853105890,0.2,180.36,180.33,5.89796997]
[1761853106101,6.4044849,180.36,180.31,5.89796997]
[1761853106313,4.03011127,180.35,180.31,5.89796997]
[1761853106475,9.37100349,180.36,180.32,5.89796997]
[1761853106679,9.37100349,180.36,180.33,5.89796997]
[1761853106680,5.7444849,180.36,180.33,5.89796997]
[1761853106890,0.2,180.36,180.34,5.89796997]
[1761853107178,3.82651859,180.36,180.34,5.89796997]
[1761853107381,10.03114572,180.36,180.31,5.89796997]
[1761853107685,13.20816307,180.35,180.31,5.89796997]
[1761853107891,7.66315711,180.34,180.29,6.23655305]
[1761853108091,7.66759294,180.33,180.29,6.23655305]
[1761853108280,3.62651859,180.32,180.29,6.23655305]
[1761853108484,3.62651859,180.34,180.3,0.69]
[1761853108687,3.62651859,180.33,180.3,0.69]
[1761853108882,3.62651859,180.35,180.3,0.69]
[1761853109083,7.66758281,180.34,180.3,0.69]
[1761853109383,0.2,180.36,180.3,0.69]
[1761853109384,3.62651859,180.33,180.3,0.69]
[1761853109688,3.62651859,180.35,180.31,19.41101436]
[1761853109888,0.2,180.36,180.31,19.41101436]
[1761853110092,3.82651859,180.36,180.32,0.69]
[1761853110292,0.2,180.36,180.35,5.89796997]
[1761853110488,3.82651859,180.36,180.35,5.89796997]
[1761853110683,0.2,180.36,180.35,6.58796997]
[1761853110895,3.82651859,180.36,180.35,6.58796997]
[1761853111500,3.82651859,180.36,180.35,5.89796997]
[1761853111694,7.87823093,180.36,180.35,5.89796997]
[1761853113208,7.87823093,180.36,180.35,6.58796997]
[1761853114112,7.87823093,180.36,180.35,12.13274402]
[1761853114410,7.87823093,180.36,180.35,5.89796997]
[1761853114717,7.87823093,180.36,180.32,0.69]
[1761853115028,7.70856458,180.35,180.33,0.69]
[1761853115184,0.2,180.36,180.33,0.69]
[1761853115185,3.65116685,180.34,180.33,0.69]
[1761853116296,0.2,180.36,180.33,25.99683149]
[1761853116499,0.2,180.36,180.35,5.89796997]
[1761853116707,0.2,180.36,180.35,6.58796997]
[1761853117618,0.2,180.36,180.35,0.69]
[1761853117918,0.2,180.36,180.35,6.58796997]
[1761853118094,4.2628763,180.36,180.35,6.58796997]
[1761853118299,0.2,180.36,180.35,12.13274402]
[1761853118619,0.2,180.4,180.37,9.78882769]
[1761853118801,0.2,180.4,180.39,11.79593994]
[1761853119007,0.2,180.4,180.39,5.89796997]
[1761853119320,0.2,180.4,180.39,8.91455749]
[1761853119493,4.2644304,180.4,180.39,8.91455749]
[1761853119694,4.9844304,180.4,180.39,8.91455749]
[1761853120403,4.9844304,180.4,180.37,8.91455749]
[1761853120614,4.7844304,180.39,180.37,8.91455749]
[1761853120913,4.0644304,180.38,180.32,0.72]
[1761853121222,4.0644304,180.37,180.27,13.86808675]
[1761853121424,4.0644304,180.36,180.3,0.72]
[1761853121627,4.0644304,180.35,180.28,0.72]
[1761853121926,4.0644304,180.34,180.28,0.72]
[1761853122125,0.72,180.35,180.33,8.91455749]
[1761853122327,9.60771494,180.34,180.33,8.91455749]
[1761853122503,9.60771494,180.34,180.28,5.54665667]
[1761853122504,9.60771494,180.34,180.27,5.54717832]
[1761853122823,4.06245986,180.33,180.32,8.91455749]
[1761853123240,4.78245986,180.33,180.32,8.91455749]
[1761853123409,4.78245986,180.33,180.26,14.58882721]
[1761853123410,4.78245986,180.33,180.3,8.91455749]
[1761853123606,20.592,180.31,180.26,0.72]
[1761853123810,20.592,180.31,180.28,8.91455749]
[1761853123811,4.06245986,180.3,180.28,8.91455749]
[1761853124021,4.06245986,180.3,180.19,0.72]
[1761853124022,12.97701735,180.29,180.19,0.72]
[1761853124214,4.06245986,180.28,180.24,8.91455749]
[1761853124528,4.06245986,180.27,180.25,8.91455749]
[1761853124711,4.06245986,180.26,180.25,8.91455749]
[1761853124908,4.78245986,180.27,180.24,8.91455749]
[1761853125122,4.06245986,180.26,180.22,8.91455749]
[1761853125424,4.06245986,180.25,180.22,8.91455749]
[1761853125738,20.592,180.27,180.24,8.91455749]
[1761853125943,4.06333837,180.26,180.25,8.91455749]
[1761853126102,4.78333837,180.26,180.25,8.91455749]
[1761853126409,4.06333837,180.26,180.25,8.91455749]
[1761853126621,4.06502272,180.29,180.17,2.28432313]
[1761853126804,0.72,180.26,180.21,8.91455749]
[1761853127026,25.37665239,180.26,180.12,9.78882769]
[1761853127228,4.06465239,180.25,180.22,8.91455749]
[1761853127461,20.592,180.22,180.1,19.43364796]
[1761853127626,20.592,180.22,180.17,8.91455749]
[1761853127627,4.06465239,180.21,180.17,8.91455749]
[1761853127821,4.78465239,180.21,180.17,8.91455749]
[1761853128151,12.97920988,180.21,180.1,19.43364796]
[1761853128325,20.592,180.22,180.13,8.91455749]
[1761853128326,5.55031359,180.17,180.13,8.91455749]
[1761853128526,7.72197374,180.16,180.12,8.91455749]
[1761853128840,3.65832992,180.16,180.09,5.55276262]
[1761853129145,8.91455749,180.16,180.11,8.91455749]
[1761853129332,29.50655749,180.14,180.09,8.91455749]
[1761853129532,20.592,180.1,180.09,8.91455749]
[1761853129745,4.37560232,180.13,180.09,8.91455749]
[1761853129944,20.592,180.11,180.09,8.91455749]
[1761853130346,3.65560232,180.13,180.1,8.91455749]
[1761853130657,20.592,180.15,180.12,8.91455749]
[1761853130828,20.592,180.15,180.13,8.91455749]
[1761853131332,20.592,180.14,180.13,8.91455749]
[1761853132048,20.592,180.17,180.13,8.91455749]
[1761853132253,8.91455749,180.14,180.03,0.82]
[1761853132451,20.592,180.1,180.08,8.91455749]
[1761853132652,3.64944563,180.12,180.09,8.91455749]
[1761853132957,20.592,180.12,180.11,8.91455749]
[1761853133254,20.592,180.13,180.11,8.91455749]
[1761853133456,20.592,180.13,180.1,8.91455749]
[1761853133634,20.592,180.13,180.04,5.55432126]
[1761853133963,9.63455749,180.12,180.06,8.91455749]
[1761853134139,20.592,180.13,180.1,8.91455749]
[1761853134456,15.18517459,180.17,180.1,14.46699046]
[1761853134656,35.77717459,180.17,180.11,8.91455749]
[1761853134954,8.91455749,180.19,180.13,8.91455749]
[1761853135625,5.55002861,180.18,180.13,8.91455749]
[1761853135826,9.19208468,180.18,180.13,8.91455749]
[1761853136054,9.91208468,180.18,180.13,8.91455749]
[1761853136249,3.64205607,180.18,180.14,9.63455749]
[1761853136553,8.91455749,180.21,180.15,14.46543178]
[1761853136856,5.54909507,180.21,180.16,8.91455749]
[1761853137027,9.63455749,180.2,180.11,0.72]
[1761853137231,8.91455749,180.15,180.09,8.91455749]
[1761853137533,8.91455749,180.15,180.08,5.55308672]
[1761853137738,8.91455749,180.15,180.09,8.91455749]
[1761853137937,9.63455749,180.16,180.1,8.91455749]
[1761853138358,15.1854599,180.16,180.1,8.91455749]
[1761853138660,8.91455749,180.14,180.09,8.91455749]
[1761853139261,15.1854599,180.16,180.11,8.91455749]
[1761853139459,6.27090241,180.16,180.12,8.91455749]
[1761853139652,3.63550466,180.17,180.15,8.91455749]
[1761853139835,5.55030028,180.18,180.15,8.91455749]
[1761853140233,6.27030028,180.18,180.14,8.91455749]
[1761853140963,5.54963059,180.2,180.16,8.91455749]
[1761853141332,6.26963059,180.2,180.16,8.91455749]
[1761853142069,5.54963059,180.2,180.16,8.91455749]
[1761853142268,8.91455749,180.17,180.07,5.5533959]
[1761853142467,3.63277512,180.19,180.15,8.91455749]
[1761853142650,0.72,180.24,180.18,8.91455749]
[1761853142854,9.63455749,180.23,180.11,20.592]
[1761853143041,8.91455749,180.22,180.11,20.592]
[1761853143373,8.91455749,180.2,180.15,8.91455749]
[1761853143669,8.91455749,180.19,180.14,8.91455749]
[1761853143851,3.63320839,180.2,180.17,8.91455749]
[1761853144051,26.14109797,180.21,180.17,8.91455749]
[1761853144257,0.72,180.2,180.16,8.91455749]
[1761853144563,9.63455749,180.2,180.15,8.91455749]
[1761853144740,29.50655749,180.18,180.1,0.72]
[1761853144942,29.50655749,180.18,180.1,6.27243896]
[1761853145142,0.72,180.17,180.1,0.72]
[1761853145343,9.63455749,180.17,180.12,8.91455749]
[1761853145544,8.91455749,180.16,180.11,8.91455749]
[1761853145794,9.63455749,180.16,180.11,8.91455749]
[1761853145963,5.55123792,180.14,180.08,0.72]
[1761853146144,28.34389022,180.14,180.05,0.72]
[1761853146345,0.72,180.13,180.08,8.91455749]
[1761853146669,26.14299943,180.15,180.05,0.72]
[1761853146871,0.72,180.14,180.05,0.72]
[1761853147163,8.91455749,180.13,180.08,8.91455749]
[1761853147676,9.63455749,180.13,180.08,8.91455749]
[1761853147874,8.91455749,180.14,180.09,8.91455749]
[1761853148074,5.5515461,180.13,180.04,5.55432126]
[1761853148377,5.5515461,180.13,180.07,8.91455749]
[1761853148378,8.91455749,180.12,180.07,8.91455749]
[1761853148668,0.72,180.11,180.07,8.91455749]
[1761853148882,5.5515461,180.13,180.09,8.91455749]
[1761853149053,5.5515461,180.13,180.05,0.72]
[1761853149374,9.61455749,180.12,180.04,5.55432126]
[1761853149580,9.61455749,180.12,180.06,8.91455749]
[1761853149783,0.7,180.14,180.09,8.91455749]
[1761853149990,0.7,180.14,180.05,0.65]
[1761853149991,6.25141766,180.14,180.1,8.91455749]
[1761853150157,26.14293901,180.15,180.1,8.91455749]
[1761853150352,26.14293901,180.15,180.1,9.56455749]
[1761853150560,20.592,180.15,180.11,8.91455749]
[1761853150759,20.592,180.15,180.1,5.55230655]
[1761853150961,20.592,180.15,180.12,8.91455749]
[1761853151579,26.84295422,180.15,180.08,0.65]
[1761853151783,26.14295422,180.15,180.12,8.91455749]
[1761853151983,26.14295422,180.15,180.09,0.65]
[1761853152259,8.91455749,180.13,180.04,5.55432126]
[1761853152461,8.91455749,180.12,180.07,8.91455749]
[1761853152675,8.91455749,180.1,180.05,8.91455749]
[1761853152867,8.91455749,180.09,180.04,8.91455749]
[1761853153172,8.91455749,180.06,180.03,0.1]
[1761853153690,9.61455749,180.05,180.03,0.1]
[1761853154057,6.25432126,180.04,180.03,0.1]
[1761853155299,5.55432126,180.04,180.03,0.1]
[1761853155656,15.16887875,180.04,180.03,0.1]
[1761853155883,8.91455749,180.0,179.99,1e-08]
[1761853156278,9.61455749,180.0,179.99,1e-08]
[1761853157190,15.17011304,180.0,179.99,1e-08]
[1761853157394,5.55555555,180.0,179.99,1e-08]
[1761853157691,15.17011304,180.0,179.99,1e-08]
[1761853158367,24.95894073,180.0,179.99,1e-08]
[1761853158671,15.17011304,180.0,179.99,1e-08]
[1761853159787,19.17768929,180.0,179.99,1e-08]
[1761853160192,19.17768929,180.0,179.98,114.14070197]
[1761853160193,10.48882769,179.99,179.98,114.14070197]
[1761853160395,13.62213374,179.99,179.98,114.14070197]
[1761853160680,9.61455749,179.99,179.98,114.14070197]
[1761853161185,28.96305485,179.99,179.98,114.14070197]
[1761853161398,23.66296637,179.99,179.98,84.91114582]
[1761853161568,24.95924939,179.99,179.98,84.91114582]
[1761853161764,6.25586421,179.99,179.98,84.91114582]
[1761853161966,35.7624217,179.99,179.98,84.91114582]
[1761853163178,39.37067788,179.99,179.98,84.91114582]
[1761853163578,43.37901473,179.99,179.98,84.91114582]
[1761853164178,22.78701473,179.99,179.98,84.91114582]
[1761853164380,28.96758624,179.99,179.98,84.91114582]
[1761853164564,22.78701473,179.99,179.98,84.91114582]
[1761853164899,19.17875855,179.99,179.98,84.91114582]
[1761853165085,39.07406181,179.99,179.98,84.91114582]
[1761853165286,43.38231799,179.99,179.98,84.91114582]
[1761853166180,32.57914568,179.99,179.98,84.91114582]
[1761853166388,23.66458819,179.99,179.98,10.13578134]
[1761853166585,32.57914568,179.99,179.98,10.13578134]
[1761853166766,32.58635185,179.99,179.98,10.13578134]
[1761853167277,15.34592688,179.95,179.94,32.77892562]
[1761853167481,20.592,179.91,179.9,0.1]
[1761853167779,20.592,179.91,179.73,1.99999999]
[1761853167780,28.21910246,179.91,179.85,1.4141268]
[1761853168001,4.01884628,179.9,179.87,0.76]
[1761853168206,20.592,179.91,179.87,0.76]
[1761853168376,29.50655749,179.91,179.87,0.76]
[1761853168698,20.592,179.88,179.87,0.1]
[1761853168874,3.61727769,179.9,179.87,0.1]
[1761853169077,3.61727769,179.93,179.89,8.91455749]
[1761853169382,0.7,179.97,179.9,8.91455749]
[1761853169609,0.7,179.97,179.87,0.1]
[1761853169610,8.91455749,179.91,179.87,0.1]
[1761853169791,8.91455749,179.88,179.87,0.1]
[1761853170006,29.50655749,179.88,179.87,0.1]
[1761853170175,9.78882769,179.93,179.87,0.1]
[1761853170176,20.592,179.9,179.87,0.1]
[1761853170380,0.7,179.91,179.87,0.1]
[1761853170381,18.70338518,179.88,179.87,0.1]
[1761853170590,26.33573661,179.88,179.87,0.1]
[1761853170806,23.42034904,179.88,179.87,0.1]
[1761853171013,13.63152135,179.88,179.87,0.1]
[1761853171220,28.97961077,179.88,179.87,0.1]
[1761853171393,10.27622559,179.88,179.85,0.7541268]
[1761853171579,20.592,179.86,179.85,0.7541268]
[1761853171774,33.52352135,179.86,179.85,0.7541268]
[1761853171972,29.50655749,179.86,179.85,0.7541268]
[1761853172209,28.21937548,179.86,179.85,0.7541268]
[1761853172428,9.78882769,179.9,179.85,0.7541268]
[1761853172429,8.1225988,179.93,179.85,1.4141268]
[1761853172604,7.62633827,179.92,179.86,8.91455749]
[1761853172809,4.0134384,179.91,179.86,0.66]
[1761853173116,5.55740802,179.94,179.87,9.57455749]
[1761853173440,20.592,179.91,179.87,15.13401075]
[1761853173608,20.592,179.91,179.88,0.66]
[1761853173809,3.61289987,179.92,179.88,0.66]
[1761853174004,35.06428889,179.93,179.88,0.66]
[1761853174260,7.62774905,179.92,179.88,0.66]
[1761853174415,29.50655749,179.93,179.88,0.66]
[1761853174620,7.62854803,179.92,179.88,0.66]
[1761853174940,8.91455749,179.91,179.86,8.91455749]
[1761853175123,8.91455749,179.91,179.86,9.57455749]
[1761853175449,8.91455749,179.88,179.85,0.7541268]
[1761853175854,3.61289987,179.89,179.85,1.4141268]
[1761853176139,3.61289987,179.89,179.85,0.7541268]
[1761853176140,8.91455749,179.86,179.85,0.7541268]
[1761853176636,8.91455749,179.87,179.85,0.7541268]
[1761853176951,20.592,179.88,179.85,0.7541268]
[1761853177114,8.91455749,179.87,179.85,0.7541268]
[1761853177536,12.52583871,179.87,179.85,0.7541268]
[1761853177723,18.0854521,179.87,179.85,0.7541268]
[1761853178052,3.61128122,179.87,179.85,0.7541268]
[1761853178344,8.91455749,179.86,179.85,0.7541268]
[1761853178647,20.592,179.86,179.85,0.7541268]
[1761853178810,5.55967843,179.87,179.85,0.7541268]
[1761853179009,9.61455749,179.86,179.85,0.7541268]
[1761853179307,26.8518799,179.86,179.85,0.7541268]
[1761853179509,12.16828726,179.86,179.85,0.7541268]
[1761853179740,32.76028726,179.86,179.85,0.7541268]
[1761853179932,25.56752149,179.86,179.85,0.7541268]
[1761853180139,21.95711495,179.86,179.85,0.7541268]
[1761853180377,9.16991078,179.88,179.85,0.7541268]
[1761853180667,5.90840736,179.86,179.85,0.7541268]
[1761853180844,27.19040736,179.86,179.85,0.7541268]
[1761853181373,32.75028726,179.86,179.85,0.7541268]
[1761853182041,21.94711495,179.86,179.85,0.7541268]
[1761853182939,42.53911495,179.86,179.85,0.7541268]
[1761853183134,25.55437865,179.86,179.85,0.7541268]
[1761853183369,16.03870759,179.86,179.85,0.7541268]
[1761853183562,21.94711495,179.86,179.85,0.7541268]
[1761853183770,27.85552231,179.86,179.85,0.7541268]
[1761853184135,46.14637865,179.86,179.85,0.7541268]
[1761853184341,25.55437865,179.86,179.85,0.7541268]
[1761853184562,16.03870759,179.86,179.85,0.7541268]
[1761853184772,15.34870759,179.86,179.85,0.7541268]
[1761853184947,5.90840736,179.86,179.85,0.7541268]
[1761853185469,32.06028726,179.86,179.85,0.7541268]
[1761853185638,12.15828726,179.86,179.85,0.7541268]
[1761853185940,12.15828726,179.86,179.85,1e-08]
[1761853185941,25.95368322,179.86,179.85,1e-08]
[1761853186140,32.97679717,179.86,179.85,1e-08]
[1761853186452,36.98260596,179.86,179.85,1e-08]
[1761853186968,32.97679717,179.86,179.85,1e-08]
[1761853187135,11.46828726,179.86,179.85,1e-08]
[1761853187341,41.84911495,179.86,179.85,1e-08]
[1761853187557,32.97875019,179.86,179.85,1e-08]
[1761853187770,36.98746786,179.86,179.85,1e-08]
[1761853188354,31.0790605,179.86,179.85,1e-08]
[1761853188554,36.98746786,179.86,179.85,1e-08]
[1761853188765,36.99004616,179.86,179.85,1e-08]
[1761853188968,30.3916388,179.86,179.85,1e-08]
[1761853189170,32.97875019,179.86,179.85,1e-08]
[1761853189964,26.38034283,179.86,179.85,1e-08]
[1761853190164,5.90840736,179.87,179.85,1e-08]
[1761853190659,11.46769055,179.88,179.85,0.72000001]
[1761853190977,20.592,179.86,179.85,1e-08]
[1761853191356,5.55928319,179.88,179.85,1e-08]
[1761853191560,5.55981032,179.87,179.85,1e-08]
[1761853192152,20.592,179.86,179.85,0.72000001]
[1761853192358,3.61799444,179.88,179.85,0.72000001]
[1761853192565,20.592,179.86,179.85,6.62840737]
[1761853193953,26.15159871,179.87,179.85,6.62840737]
[1761853194151,26.15159871,179.87,179.85,0.72000001]
[1761853194472,3.62586445,179.86,179.85,0.72000001]
[1761853194947,24.21786445,179.86,179.85,6.62840737]
[1761853195149,20.592,179.86,179.85,6.62840737]
[1761853195447,20.592,179.86,179.85,1e-08]
[1761853195651,29.78141096,179.86,179.85,1e-08]
[1761853195867,33.81357884,179.86,179.85,1e-08]
[1761853196069,28.25369894,179.86,179.85,1e-08]
[1761853196257,24.62969134,179.86,179.85,1e-08]
[1761853196459,24.22153106,179.86,179.85,1e-08]
[1761853196660,28.2595689,179.86,179.85,1e-08]
[1761853196861,33.8194488,179.86,179.85,1e-08]
[1761853197672,28.8194488,179.86,179.85,1e-08]
[1761853198574,39.29827649,179.86,179.85,1e-08]
[1761853198767,23.2595689,179.86,179.85,1e-08]
[1761853198966,28.8194488,179.86,179.85,0.72000001]
[1761853199863,23.2595689,179.86,179.85,0.72000001]
[1761853200072,23.2595689,179.86,179.85,6.62840737]
[1761853200480,23.2595689,179.86,179.85,0.72000001]
[1761853200652,7.6675689,179.86,179.85,6.62840737]
[1761853200859,13.24293882,179.86,179.85,0.72000001]
[1761853201055,13.24293882,179.86,179.85,1e-08]
[1761853201256,30.38082769,179.82,179.73,0.72]
[1761853201455,7.68305892,179.81,179.78,153.67017549]
[1761853201667,7.68305892,179.8,179.78,148.48176813]
[1761853201866,7.68305892,179.79,179.78,147.76176813]
[1761853202067,3.62953106,179.79,179.78,159.23252947]
[1761853202278,1.82953106,179.84,179.78,159.23252947]
[1761853202468,7.46692773,179.92,179.83,5.90840736]
[1761853202789,6.05946599,179.96,179.78,147.76176813]
[1761853202790,5.90840736,179.89,179.78,147.76176813]
[1761853202961,4.05434051,179.88,179.78,153.32411586]
[1761853203166,4.05434051,179.87,179.78,167.23000083]
[1761853203364,4.05434051,179.86,179.78,167.23000083]
[1761853203571,6.24806272,179.92,179.78,167.23000083]
[1761853203770,4.05637549,179.91,179.78,167.23000083]
[1761853203986,9.61530702,179.9,179.78,167.23000083]
[1761853204179,4.05637549,179.89,179.78,167.23000083]
[1761853204379,4.05637549,179.88,179.78,167.23000083]
[1761853204580,4.05637549,179.87,179.78,167.23000083]
[1761853204771,5.55833472,179.91,179.86,5.90840736]
[1761853204971,4.05660066,179.9,179.78,195.04177077]
[1761853205176,4.05660066,179.89,179.86,5.90840736]
[1761853205374,4.05660066,179.88,179.78,195.04177077]
[1761853205575,4.05660066,179.87,179.86,5.90840736]
[1761853205805,4.05660066,179.87,179.85,5.90840736]
[1761853205986,9.96500802,179.86,179.81,5.90840736]
[1761853206296,9.96500802,179.85,179.78,147.76176813]
[1761853206477,4.05660066,179.84,179.78,153.32405242]
[1761853206798,5.90840736,179.85,179.78,147.76176813]
[1761853206799,4.05660066,179.83,179.78,147.76176813]
[1761853207000,4.05660066,179.82,179.78,153.3241165]
[1761853207175,4.05660066,179.81,179.78,153.3241165]
[1761853207375,5.90840736,179.87,179.8,5.90840736]
[1761853207583,30.56003043,179.86,179.78,147.76176813]
[1761853207895,41.06587628,179.93,179.78,147.04176813]
[1761853207896,5.56142594,179.81,179.78,147.04176813]
[1761853208074,4.05962307,179.8,179.78,147.76176813]
[1761853208270,4.55957693,179.86,179.78,147.04176813]
[1761853208475,4.0600975,179.85,179.78,166.51000708]
[1761853208677,4.06048959,179.84,179.79,0.72]
[1761853208887,4.55957693,179.9,179.83,5.90840736]
[1761853209077,4.06107286,179.89,179.79,0.72]
[1761853209282,4.06107286,179.88,179.79,0.72]
[1761853209483,4.06107286,179.87,179.84,5.90840736]
[1761853209697,4.06107286,179.86,179.84,0.69]
[1761853210005,4.06107286,179.85,179.84,5.90840736]
[1761853210189,4.06107286,179.85,179.81,5.56142594]
[1761853210374,5.55863443,179.91,179.84,5.90840736]
[1761853210375,4.55957693,179.91,179.84,5.90840736]
[1761853210575,4.06540147,179.9,179.87,5.90840736]
[1761853210872,4.06540147,179.89,179.86,5.90840736]
[1761853211071,16.02601007,179.92,179.87,5.90840736]
[1761853211072,4.06540147,179.88,179.87,5.90840736]
[1761853211300,4.06540147,179.88,179.87,6.59840736]
[1761853211482,4.06540147,179.88,179.87,5.90840736]
[1761853211681,4.06540147,179.88,179.85,0.69]
[1761853211893,4.06540147,179.87,179.85,0.69]
[1761853212081,25.86157693,179.93,179.85,0.69]
[1761853212082,4.06540147,179.86,179.85,0.69]
[1761853212292,4.06540147,179.86,179.85,6.59840736]
[1761853212501,20.592,179.87,179.83,5.90840736]
[1761853212805,30.56580883,179.86,179.81,5.90840736]
[1761853213026,20.592,179.83,179.78,147.04176813]
[1761853213195,20.592,179.79,179.78,147.04176813]
[1761853213506,24.65740147,179.79,179.78,147.04176813]
[1761853213679,31.27580883,179.79,179.78,147.04176813]
[1761853213876,40.71827376,179.79,179.78,147.04176813]
[1761853214113,46.62668112,179.79,179.78,147.04176813]
[1761853214314,44.37598596,179.79,179.78,147.04176813]
[1761853214604,28.31511367,179.79,179.78,147.04176813]
[1761853214788,7.72311367,179.79,179.78,147.04176813]
[1761853214987,40.49556563,179.79,179.78,147.04176813]
[1761853215286,23.78398596,179.79,179.78,145.48176813]
[1761853215493,17.51194136,179.79,179.78,145.48176813]
[1761853215703,7.72311367,179.79,179.78,145.48176813]
[1761853215878,18.13194136,179.79,179.78,145.48176813]
[1761853216697,24.04034872,179.79,179.78,145.48176813]
[1761853217428,24.04034872,179.79,179.78,66.28350433]
[1761853217592,31.11578412,179.79,179.78,1e-08]
[1761853218209,29.07092467,179.78,179.71,34.03090007]
[1761853218410,7.72311367,179.77,179.71,34.03090007]
[1761853218613,14.79854907,179.76,179.71,34.03090007]
[1761853218927,1.99999999,179.74,179.71,1e-08]
[1761853219118,9.14161772,179.75,179.71,1e-08]
[1761853219119,15.01168007,179.73,179.71,1e-08]
[1761853219425,4.06540147,179.72,179.71,1e-08]
[1761853219597,4.68540147,179.72,179.71,1e-08]
[1761853219796,16.15801982,179.72,179.71,1e-08]
[1761853220128,25.94684751,179.72,179.71,1e-08]
[1761853220306,30.38082769,179.68,179.67,1e-08]
[1761853220505,35.06622916,179.68,179.67,1e-08]
[1761853221521,42.14166456,179.68,179.67,1e-08]
[1761853221706,56.02870192,179.68,179.67,1e-08]
[1761853221905,55.68574424,179.68,179.67,1e-08]
[1761853222425,67.50255896,179.68,179.67,1e-08]